Cogmind - Beta 15 @@@ ROGUE MODE // 2025.05.19 @ 10:21:21 Player: ChoccyMilch Result: Destroyed by Y-45 Defender with Beam Rifle Performance ------------- Evolutions (1) 500 Regions Visited (2) 400 Robots Destroyed (20) 100 Value Destroyed (531) 531 Prototype IDs (0) 0 Alien Tech Used (0) 0 Bonus (0) 0 TOTAL SCORE: 1531 Bonus ------- None Cogmind --------- Core Integrity 0/400 Matter 167/300 Energy 100/100 System Corruption 0% Temperature Cool (9) Movement Core (1350) Ox26 Location -9/Materials Parts ------- > --- POWER (3) -------- (None) > --- PROPULSION (2) --- (None) > --- UTILITY (2) ------ Huge Storage Unit Propulsion Shielding > --- WEAPON (2) ------- (None) > --- INVENTORY (25) --- VTOL Module Heat Sink Peak State ------------ > --- POWER ------------ Light Ion Engine > --- PROPULSION ------- VTOL Module VTOL Module > --- UTILITY ---------- Heat Sink Terrain Scan Processor > --- WEAPON ----------- Assault Rifle Rocket Launcher > --- INVENTORY -------- VTOL Module VTOL Module EM Pulse Gun Rocket Launcher [Rating: 11] Favorites ----------- Power Ion Engine Engine Ion Engine Propulsion VTOL Module Wheel Wheel Flight Unit VTOL Module Utility Propulsion Shielding Device Heat Sink Storage Huge Storage Unit Processor Terrain Scan Processor Protection Propulsion Shielding Weapon Assault Rifle Energy Gun EM Pulse Gun Ballistic Gun Assault Rifle Launcher Rocket Launcher Build | -11 -10 -9 ------- Run | Yrd Mat Mat Slots Evolved 2 | . . 2 Power 2 | . . 2 Propulsion . | . . . Utility . | . . . Weapon . | . . . Parts Attached 16 | 6 9 1 Power 2 | 1 1 . Engine 2 | 1 1 . Core . | . . . Reactor . | . . . Propulsion 4 | 2 2 . Treads . | . . . Leg . | . . . Wheel 2 | 2 . . Hover . | . . . Flight 2 | . 2 . Utility 6 | 1 5 . Device 1 | 1 . . Storage 3 | . 3 . Processor 1 | . 1 . Hackware . | . . . Protection 1 | . 1 . Artifact . | . . . Weapon 4 | 2 1 1 Energy Gun 1 | 1 . . Energy Cannon . | . . . Ballistic Gun 1 | 1 . . Ballistic Cannon . | . . . Launcher 2 | . 1 1 Special Weapon . | . . . Impact Weapon . | . . . Slashing Weapon . | . . . Piercing Weapon . | . . . Special Melee Weapon . | . . . Unidentified Prototypes . | . . . Parts Lost 6 | . . 6 Power 1 | . . 1 Propulsion 2 | . . 2 Utility . | . . . Weapon 3 | . . 3 Highest Loss Streak 3 | . . 3 To Critical Strikes . | . . . Average Backups 2 | . 2 2 Power . | . . . Propulsion . | . 1 1 Utility . | . . 1 Weapon . | . 1 . Tool/Special . | . . . Unused Backups 2 | . 1 1 Power . | . . . Propulsion 2 | . 1 1 Utility . | . . . Weapon . | . . . Tool/Special . | . . . Average Slot Usage (%) 93 | . 99 60 Engine 12 | . 14 5 Flight 25 | . 27 18 Device 1 | . 2 . Storage 12 | . 12 11 Protection 11 | . 11 11 Ballistic Gun 12 | . 14 6 Launcher 12 | . 13 7 Peak Build Rating 11 | 6 11 10 Average Rating 9 | 3 10 7 On Entrance 5 | . 6 10 Naked Turns . | . . . Heaviest Build 92 | 8 92 92 Greatest Support 20 | 20 20 8 Greatest Overweight (x) 26 | . 11 26 Average Overweight (x) 4 | . 4 13 Largest Inventory Capacity 25 | 5 25 25 Average Capacity 20 | 5 20 25 Most Carried 4 | 3 4 3 Average Carried 2 | . 2 2 Final Capacity 25 | 5 25 25 Final Carried 3 | . 3 2 Class Distribution -------------------- 100% | Mutant Dominant Class ---------------- Mutant | -10/Materials Mutant | -9/Materials Resources | -11 -10 -9 ----------- Run | Yrd Mat Mat Matter Collected 528 | 272 256 . Remotely . | . . . Salvage Created 441 | 48 307 86 Parts 37 | 2 23 12 Haulers Intercepted . | . . . Recyclers Shooed 1 | . 1 . Parts Field Recycled . | . . . Retrieved Matter . | . . . Parts Self-Destructed . | . . . Prevented . | . . . Kills | -11 -10 -9 ------- Run | Yrd Mat Mat Combat Hostiles Destroyed 12 | 1 7 4 Guns 3 | 1 2 . AOE 9 | . 5 4 Classes Destroyed 9 | 1 7 1 Worker 1 | . 1 . Builder 2 | . 1 1 Tunneler 1 | . 1 . Recycler 1 | . 1 . Mechanic 1 | . 1 . Operator 1 | . 1 . Watcher 1 | . 1 . Grunt 11 | 1 7 3 Sentry 1 | . . 1 Best Kill Streak 7 | 1 7 5 Combat Bots Only 3 | 1 3 3 Max Kills in Single Turn 3 | 1 3 1 Gunslinging . | . . . Exploded 2 | . 2 1 Melee . | . . . Uniques/NPCs Destroyed . | . . . Combat | -11 -10 -9 -------- Run | Yrd Mat Mat Hostile Shots Fired 92 | 5 24 63 Missed 28 | 2 10 16 Hits 64 | 3 14 47 Projectile 64 | 3 14 47 Critical Strikes 3 | . . 3 Damage Taken 941 | 34 209 698 Core 461 | 12 36 413 Absorbed by Shields . | . . . Redirected to Shielding 22 | . 3 19 Core Remaining (%) 87 | 95 80 . Volleys Fired 29 | 4 12 13 Largest 2 | 2 2 1 Hottest 60 | 60 53 33 Shots Fired 45 | 8 24 13 Gun 20 | 8 12 . Cannon . | . . . Launcher 25 | . 12 13 Special . | . . . Kinetic 16 | 4 12 . Thermal . | . . . Explosive 25 | . 12 13 Electromagnetic 4 | 4 . . Robot Hit Streak 5 | 5 2 3 Robot Miss Streak 2 | 2 2 2 Penetration Max . | . . . Secondary Targets . | . . . Shots Hit Robots 21 | 6 11 4 Core Hits 35 | 2 25 8 Critical Kills . | . . . Critical Parts Destroyed . | . . . Critical Strikes . | . . . Melee Attacks . | . . . Impact . | . . . Slashing . | . . . Piercing . | . . . Sneak Attacks . | . . . Combat Hostiles . | . . . Follow-up Attacks . | . . . Damage Inflicted 1164 | 79 725 360 Guns 166 | 79 87 . Cannons . | . . . Explosions 998 | . 638 360 Melee . | . . . Ramming . | . . . Kinetic 126 | 39 87 . Thermal . | . . . Explosive 998 | . 638 360 Electromagnetic 40 | 40 . . Impact . | . . . Slashing . | . . . Piercing . | . . . Highest Corruption . | . . . Average Corruption . | . . . Corruption Purged . | . . . Corruption Blocked . | . . . Overload Shots . | . . . Overflow Damage . | . . . Projectiles . | . . . Explosions . | . . . Melee . | . . . Knockbacks . | . . . Impact . | . . . Kinetic . | . . . Secondary . | . . . Self-Inflicted Damage 38 | . 38 . Shots 1 | . 1 . Rammed . | . . . Targets Rammed . | . . . Kicked . | . . . Crushed . | . . . Highest Temperature 18 | 18 15 17 Average Temperature 11 | 11 10 12 Received Heat Transfer 381 | 18 96 267 Siege Activations . | . . . Martial Activations . | . . . Shielding Activations . | . . . Robots Disrupted . | . . . Combat Hostiles . | . . . Robots Corrupted . | . . . Combat Hostiles . | . . . Parts Fried . | . . . Impact Corruptions . | . . . Robots Melted . | . . . Combat Hostiles . | . . . Parts Melted . | . . . Heat Transferred . | . . . Parts Sabotaged . | . . . Parts Stolen . | . . . Parts Stripped . | . . . Power Chain Reactions . | . . . Alert | -11 -10 -9 ------- Run | Yrd Mat Mat Maximum Alert Level . | . . . Low Security (%) 100 | 100 100 100 Level 1 . | . . . Level 2 . | . . . Level 3 . | . . . Level 4 . | . . . Level 5 . | . . . High Security . | . . . Max Security . | . . . Peak Influence 166 | 10 135 166 Initial 6 | . 6 . Average 33 | 2 32 47 Influence Increases 526 | 20 320 186 Destroy 0b10 Robot/C 240 | 20 140 80 Destroy 0b10 Robot/NC 40 | . 35 5 Destroy Leader 52 | . 22 30 Disable Machine 45 | . 30 15 Destroy Structure 149 | . 93 56 Influence Decreases 420 | 10 330 80 Entered New Map 4 | . 4 . Time Decay 386 | 10 326 50 Lost Part 30 | . . 30 Squads Dispatched 3 | . 1 2 Investigation 1 | . 1 . Extermination . | . . . Reinforcement 2 | . . 2 Assault . | . . . Garrison . | . . . Intercept . | . . . Searches Triggered . | . . . Construction Impeded . | . . . Haulers Reinforced . | . . . Active Scanning Responses . | . . . Cargo Convoy Interrupts . | . . . Stealth | -11 -10 -9 --------- Run | Yrd Mat Mat Distress Signals . | . . . Communications Jammed . | . . . Distress Signals . | . . . Times Spotted 13 | 1 9 3 Peak Tracking Total 2 | 1 2 2 Tactical Retreats . | . . . Traps | -11 -10 -9 ------- Run | Yrd Mat Mat Traps Triggered . | . . . Indirectly . | . . . Trap Hack Attempts . | . . . Triggered . | . . . Disarmed . | . . . Reprogrammed . | . . . Reused . | . . . Traps Extracted . | . . . Installed . | . . . Triggered . | . . . Machines | -11 -10 -9 ---------- Run | Yrd Mat Mat Machines Disabled 3 | . 2 1 Max in Single Turn 1 | . 1 1 Machines Repaired . | . . . Machines Dismantled . | . . . Machines Sabotaged . | . . . Overloaded Fab Kills . | . . . Hacking | -11 -10 -9 --------- Run | Yrd Mat Mat Machines Accessed 2 | . 2 . Terminals 1 | . 1 . Fabricators . | . . . Repair Stations 1 | . 1 . Recycling Units . | . . . Scanalyzers . | . . . Garrison Access . | . . . Total Hacks 10 | . 10 . Successful 7 | . 7 . Failed 3 | . 3 . Catastrophic . | . . . Database Lockouts . | . . . Manual . | . . . Terminals 8 | . 8 . Fabricators . | . . . Repair Stations 2 | . 2 . Recycling Units . | . . . Scanalyzers . | . . . Garrison Access . | . . . Terminal Hacks 6 | . 6 . Record 4 | . 4 . Dispatch Records 1 | . 1 . Hauler Manifests 1 | . 1 . Fabricator Hacks . | . . . Repair Station Hacks 1 | . 1 . Scan Component 1 | . 1 . Recycling Unit Hacks . | . . . Scanalyzer . | . . . Garrison Access Hacks . | . . . Unauthorized Hacks . | . . . Terminals . | . . . Fabricators . | . . . Repair Stations . | . . . Recycling Units . | . . . Scanalyzers . | . . . Garrison Access . | . . . Data Cores Recovered . | . . . Used . | . . . Hacking Detections 1 | . 1 . Full Trace Events 1 | . 1 . Feedback Events . | . . . Feedback Blocked . | . . . Robot Schematics Acquired . | . . . Robots Built . | . . . Authchips . | . . . Time . | . . . Total Robot Build Rating . | . . . Part Schematics Acquired . | . . . Parts Built . | . . . Authchips . | . . . Time . | . . . Total Part Build Rating . | . . . Parts Repaired . | . . . Time . | . . . Parts Recycled . | . . . Recycled Matter . | . . . Retrieved Matter . | . . . Retrieved Components . | . . . Parts Scanalyzed . | . . . Part Schematics Acquired . | . . . Parts Damaged . | . . . Bothacking | -11 -10 -9 ------------ Run | Yrd Mat Mat Used RIF Installer . | . . . Robots Hacked . | . . . Non-combat . | . . . Combat . | . . . Robot Hacks Applied . | . . . Relay Couplers Released . | . . . Fabnet Peak Effective % . | . . . Robots Rewired . | . . . Allies Hacked . | . . . Hacks Repelled . | . . . Allies | -11 -10 -9 -------- Run | Yrd Mat Mat Total Allies . | . . . Largest Group . | . . . Highest-Rated Group . | . . . Highest-Rated Ally . | . . . Total Orders . | . . . Ally Attacks . | . . . Total Damage . | . . . Kills . | . . . Allies Corrupted . | . . . Allies Melted . | . . . Intel | -11 -10 -9 ------- Run | Yrd Mat Mat Active Infowar (turns) . | . . . Robot Analysis Total . | . . . Derelict Logs Recovered . | . . . Drone Launches . | . . . Drone Recoveries . | . . . Exploration | -11 -10 -9 ------------- Run | Yrd Mat Mat Turns Passed 1624 | 75 1319 230 Spaces Moved 390 | 72 297 21 Core 30 | 27 . 3 Treads . | . . . Legs . | . . . Wheels 54 | 45 9 . Hover . | . . . Flight 306 | . 288 18 Fastest Speed 32 | 50 32 832 Average Speed 390 | 68 425 997 Slowest Speed 1635 | 80 912 1635 Overloaded Moves . | . . . Propulsion Burnouts . | . . . Robots Hopped . | . . . Potential Cave-ins . | . . . Cave-ins Triggered . | . . . Exploration Rate (%) 21 | 9 49 6 Regions Visited 2 Branch Regions . Pre-discovered Areas . | . . . Known Exits Taken . | . . . Unknown Exits Taken 2 | 1 1 . Scrap Searched . | . . . Spaces Dug . | . . . Terrain Destroyed 168 | . 102 66 Melee . | . . . Projectile . | . . . AOE 168 | . 102 66 Terrain Rammed . | . . . Walls Destroyed . | . . . Machines Disabled . | . . . Actions | -11 -10 -9 --------- Run | Yrd Mat Mat Total 460 | 89 336 35 Wait . | . . . Move 388 | 71 296 21 Hop . | . . . Pick Up 19 | 7 12 . Fast Attach . | . . . Attach 8 | 6 1 1 Detach . | . . . Swap 8 | . 8 . Drop 8 | 1 7 . Fire 29 | 4 12 13 Melee . | . . . Ram . | . . . Kick . | . . . Crush . | . . . Escape Stasis . | . . . Rewire . | . . . Trap . | . . . Miscellaneous . | . . . Route ------- -11/Scrapyard -10/Materials -9/Materials (discovered 1 exit: [*Sto]) History --------- Turn | Location | Event 2 | -11/Scrapyard | Met Revision 17 47 | -11/Scrapyard | Discovered new exit (range 8) 76 | -11/Scrapyard | Entered Materials 308 | -10/Materials | Build established: Mutant 967 | -10/Materials | Discovered new exit (range 16) 1395 | -10/Materials | Entered another Materials area 1395 | -9/Materials | Evolved 2 slots: Power x2 1554 | -9/Materials | Lost 3 parts (1p2w) 1556 | -9/Materials | Discovered new exit (range 15) 1574 | -9/Materials | Core integrity fell below 50% 1607 | -9/Materials | Core integrity fell below 20% 1622 | -9/Materials | Lost 3 parts (2n1w) 1625 | -9/Materials | Destroyed by Y-45 Defender with Beam Rifle Last Messages --------------- The unstable cave ceiling collapses. U-05 Engineer lays Concrete. VTOL Module destroyed. U-05 Engineer lays Concrete. The unstable cave ceiling collapses. U-05 Engineer lays Concrete. U-05 Engineer builds a Wall. U-05 Engineer lays Concrete. The unstable cave ceiling collapses. U-05 Engineer lays Concrete. U-05 Engineer builds a Wall. R-06 Scavenger collects Heat Sink. U-05 Engineer lays Concrete. U-05 Engineer builds a Wall. R-06 Scavenger collects Sml. Laser. U-05 Engineer lays Concrete. Critical hit (Burn: +37). U-05 Engineer lays Concrete. The unstable cave ceiling collapses. U-05 Engineer lays Concrete. Map ----- +----------------------------------------------------+ | ???????????????????????????????????? | | ???????????????????????????????????? | | ???????????????????????????????????? | | ???????????????????????????????????? | | ???????????????????????????????????? | | ???????????????????????????????????? | | ???????????????????????????????????? | | ???????????????????????????????????? | | ???????????????????????????????????? | | ???????????????????????????????????? | | ???????????????????????????????????? | | ???????????????????????????????????? | | ???????????????????????????????????? | | ????#?###+?????????????????????????? | | ????## ????#????????????????????? | | ????? # ????=????????????????????? | | ????? ??? ????????????????????? | | ????# ??? ????????????????????? | | ????# # ?? #+#??????????????????? | | ???## # ?? ??? ??????????????? | | ? "" #? ???????????????? | | ? ""S = #? """ ????????????????? | | # "" # #? """ ?????????????????? | | # # u## """??????????????????? | | ??? # ???????????????????? | | ???????# @# ##+##????????????????? | | ???????# #????????????????? | | ???????+ #????????????????? | | ???????# ######???????????? | | ???????# #??????????? | | ???????# Y #??????????? | | ???????# u #????????? | | ???????# # #????????? | | ???????# ## ### #????????? | | ???????# # % # ?????????? | | ???????# # # ?????????? | | ???????# + = ##?????????? | | ???????# # " *% ??????????? | | ???????# # # ![ ??????????? | | ???????# # "" # < ???????????? | | ???????##### """#? ???????????? | | ???????????# """#???????????????? | | ???????????# """#???????????????? | | ???????????# " #???????????????? | | ???????????# #???????????????? | | ???????????#########???????????????? | | ???????????????????????????????????? | | ???????????????????????????????????? | | ???????????????????????????????????? | | ???????????????????????????????????? | +----------------------------------------------------+ Best States ------------- Heat Dissipation 35 Energy Generation 10 Energy Capacity 250 Matter Stores 300 Matter Capacity 300 Sight Range 16 Terrain Scan Density 85 Propulsion Shielding 33 Evasion (%) 63 Item Schematics ----------------- None Robot Schematics ------------------ None Fabricated ------------ Nothing Repaired ---------- Nothing Alien Tech Used ----------------- None Achievements -------------- Shopping List Challenges ------------ None Game ------ Seed SensorSiegeFemtoactuators Manual? 0 Play Time 00:12:45 Cumulative 1.0 hours Start 2025.05.19 @ 10:07:07 End 2025.05.19 @ 10:21:21 Sessions 1 Manual Loads 0 Difficulty Rogue Special Mode None Game No. 2 Rogue 2 Adventurer 0 Explorer 0 Win Type - Total 0 Types 0/0/0/0/0/0/0/0/0/0 Lore% 0 Gallery% 2 Achievement% 4 Wizard Run 0 Options --------- Layout 1 ASCII 0 Keyboard 0 Movement Mouse Keybinds 0 Fullscreen 1 Font 32/SmallcapsGlow Map View 50x35 Zoom Use 0% Tactical HUD 0 Map Filters NONE Filters NONE Steam 1 RUN: dd0e79a2-4afc-449a-a92a-a47ac12adb45